bitfinex/quotes_ETHUSD_20250415
["timestamp","ask_amount","ask_price","bid_price","bid_amount"]
[1744685059282,0.7629,1622.3,1622.0,18.0261]
[1744685059494,0.12893328,1622.1,1622.0,12.3301]
[1744685060017,0.7629,1622.3,1622.0,12.3301]
[1744685060220,0.12893328,1622.2,1622.0,12.3301]
[1744685061114,0.12893328,1622.2,1622.1,6.76308437]
[1744685061621,6.16296,1622.6,1622.2,12.32829]
[1744685061915,8.1775142,1622.6,1622.3,6.164]
[1744685062686,8.1775142,1622.6,1622.2,6.16413]
[1744685062988,8.1775142,1622.6,1622.2,6.22576792]
[1744685064311,8.1775142,1622.6,1622.2,12.39007792]
[1744685064483,8.1775142,1622.6,1622.2,6.16413]
[1744685064684,8.1775142,1622.6,1622.2,6.22576794]
[1744685065317,14.3406942,1622.6,1622.2,6.22576794]
[1744685065682,1.43406942,1622.5,1622.2,6.22576794]
[1744685065887,1.43406942,1622.5,1622.2,6.16413]
[1744685066212,14.3406942,1622.6,1622.2,6.16413]
[1744685066413,13.12715,1622.5,1622.1,6.1648]
[1744685066583,6.16377,1622.4,1622.1,6.1648]
[1744685069723,6.96355,1622.5,1622.1,6.1648]
[1744685070125,13.12709,1622.5,1622.1,6.1648]
[1744685070332,14.64125442,1622.5,1622.1,6.1648]
[1744685070508,8.47771442,1622.5,1622.1,12.32947]
[1744685070900,0.8002,1622.5,1622.1,3.0]
[1744685071095,0.7824,1622.7,1622.5,6.16331]
[1744685072201,0.7824,1622.7,1622.4,6.1636]
[1744685072535,0.7824,1622.7,1622.4,12.32716]
[1744685073635,0.7824,1622.7,1622.4,6.16356]
[1744685074834,6.94497,1622.7,1622.4,6.16356]
[1744685076044,0.1266988,1622.6,1622.4,6.16356]
[1744685076207,0.7824,1622.7,1622.4,12.32711]
[1744685076407,0.7824,1622.7,1622.4,6.16355]
[1744685076408,0.1266988,1622.6,1622.4,6.16355]
[1744685076720,0.7824,1622.7,1622.5,6.16325]
[1744685078346,0.7824,1622.7,1622.4,6.16355]
[1744685078945,2.093104,1622.7,1622.4,6.16355]
[1744685080445,8.255794,1622.7,1622.3,6.16403]
[1744685080744,14.418664,1622.7,1622.3,6.16403]
[1744685081063,14.418664,1622.7,1622.3,3.0]
[1744685081064,6.16313,1622.6,1622.3,3.0]
[1744685081246,6.16313,1622.6,1622.2,12.86537]
[1744685082212,7.14074961,1622.6,1622.2,12.86537]
[1744685083548,7.14074961,1622.6,1622.2,6.16432]
[1744685083549,13.30390961,1622.6,1622.2,6.16432]
[1744685083857,0.8221,1622.5,1622.2,6.16432]
[1744685084942,6.98545,1622.5,1622.2,6.16432]
[1744685085143,0.8221,1622.5,1622.2,12.32866]
[1744685085965,0.8221,1622.5,1622.3,6.16393]
[1744685086168,0.7792,1622.6,1622.3,6.16393]
[1744685088661,0.7792,1622.6,1622.4,6.16354]
[1744685088861,0.7792,1622.7,1622.5,6.16332]
[1744685090048,0.8014,1622.9,1622.4,6.2253332]
[1744685090261,0.8014,1622.9,1622.6,6.1626]
[1744685090434,0.8014,1622.9,1622.6,12.32531]
[1744685090629,0.8014,1622.9,1622.5,6.62499165]
[1744685090946,7.6133,1622.9,1622.5,12.32642]
[1744685091144,0.12559554,1622.8,1622.5,12.32642]
[1744685091548,6.96346,1622.9,1622.6,6.16292]
[1744685091949,0.12559554,1622.8,1622.6,6.16292]
[1744685092145,0.8014,1622.9,1622.6,6.16292]
[1744685092558,0.12559554,1622.8,1622.7,10.31078312]
[1744685092872,0.05,1623.4,1623.3,6.16029]
[1744685093244,0.05,1623.4,1623.0,12.38996]
[1744685093567,6.20992,1623.4,1623.0,12.38996]
[1744685093864,6.95162,1623.3,1623.0,5.692]
[1744685094238,6.95162,1623.3,1622.9,6.16177]
[1744685094960,6.95162,1623.3,1622.9,12.78134209]
[1744685095137,0.7911,1623.3,1623.1,6.16086]
[1744685095337,0.05,1623.4,1623.2,6.16067]
[1744685095538,0.05,1623.4,1623.1,6.16086]
[1744685096670,6.20992,1623.4,1623.0,6.16138]
[1744685097073,6.95582,1623.3,1622.9,12.79005851]
[1744685097245,0.05,1623.4,1623.2,6.16061]
[1744685097450,0.05,1623.4,1623.1,6.16082]
[1744685097651,0.05,1623.4,1623.1,12.32164]
[1744685097852,0.05,1623.4,1623.1,6.16082]
[1744685098368,6.910548,1623.4,1623.0,12.32257]
[1744685098568,6.21004,1623.4,1623.0,12.32257]
[1744685099471,6.21004,1623.4,1623.0,12.32243]
[1744685099891,0.05,1623.4,1623.1,6.16092]
[1744685100295,0.05,1623.4,1622.9,12.19359474]
[1744685100584,0.05,1623.4,1623.2,6.16052]
[1744685100777,0.05,1623.4,1623.2,6.16049]
[1744685101908,6.16047,1623.3,1622.9,9.62845851]
[1744685102208,0.7782,1623.2,1622.9,9.62845851]
[1744685102686,0.7782,1623.2,1623.0,6.16119]
[1744685104288,0.8006,1623.4,1623.1,6.16089]
[1744685104477,0.8006,1623.4,1623.1,12.32175]
[1744685104684,0.8006,1623.4,1623.1,6.16086]
[1744685105480,6.96056,1623.4,1623.1,6.16086]
[1744685106604,0.8006,1623.4,1623.1,12.32174]
[1744685106899,0.05,1623.4,1623.2,6.1606]
[1744685107301,0.05,1623.4,1623.3,6.75849267]
[1744685107506,0.05,1623.4,1623.3,9.75849267]
[1744685109905,0.05,1623.4,1623.3,9.16029]
[1744685110301,0.05,1623.4,1623.3,6.16029]
[1744685110704,0.05,1623.4,1623.2,3.0]
[1744685110893,6.16029,1623.3,1623.0,6.69798]
[1744685111108,6.91277,1623.2,1623.1,4.0]
[1744685111295,6.91277,1623.2,1622.8,6.16217]
[1744685111500,6.16109,1623.1,1622.8,6.62407364]
[1744685112480,13.07356,1623.2,1622.8,6.62407364]
[1744685112672,13.07369,1623.2,1622.8,6.62407364]
[1744685113611,6.16109,1623.1,1622.8,6.62407364]
[1744685114518,6.16109,1623.1,1622.8,0.46190364]
[1744685114838,6.16236,1622.8,1622.5,5.685]
[1744685115037,6.16259,1622.7,1622.5,0.46393561]
[1744685115193,6.93901,1622.6,1622.2,6.70094]
[1744685115396,13.1023,1622.6,1622.2,6.16434]
[1744685116228,6.93901,1622.6,1622.2,6.16434]
[1744685116603,13.1022,1622.6,1622.2,6.16434]
[1744685117541,6.16335,1622.5,1622.2,0.45289832]
[1744685117750,6.16335,1622.5,1622.2,6.16445]
[1744685119223,12.65482,1622.8,1622.3,0.5366]
[1744685119529,0.8066,1623.1,1622.5,0.5366]
[1744685119736,6.96791,1623.1,1622.6,6.1626]
[1744685119910,13.12933,1623.1,1622.6,12.32554]
[1744685120106,13.12933,1623.1,1622.5,6.69982]
[1744685120107,6.162,1622.9,1622.5,6.69982]
[1744685120915,6.162,1622.9,1622.5,12.86296]
[1744685121330,6.9677,1623.1,1622.6,6.16279]
[1744685121536,6.9677,1623.1,1622.6,6.16274]
[1744685122736,6.16147,1623.0,1622.6,6.61566866]
[1744685123338,6.16183,1622.9,1622.6,6.61566866]
[1744685123631,12.3239,1622.9,1622.6,3.45292866]
[1744685124325,6.16183,1622.9,1622.6,3.45292866]
[1744685124930,6.16183,1622.9,1622.6,9.61584866]
[1744685125246,6.16144,1623.0,1622.7,6.16253]
[1744685125745,6.16144,1623.0,1622.7,6.16248]
[1744685125953,6.16144,1623.0,1622.6,15.77864866]
[1744685126172,6.16144,1623.0,1622.6,9.61572866]
[1744685126462,12.32312,1623.0,1622.6,9.67735192]
[1744685126752,6.16144,1623.0,1622.6,9.67735192]
[1744685126962,6.16195,1622.9,1622.6,9.61573866]
[1744685128267,6.16195,1622.9,1622.6,3.45292866]
[1744685128770,12.32323,1623.0,1622.6,15.84029191]
[1744685128969,6.16144,1623.0,1622.6,15.77846866]
[1744685129890,6.16144,1623.0,1622.6,9.61566866]
[1744685130419,6.16187,1622.9,1622.6,9.67729191]
[1744685130690,6.16144,1623.0,1622.6,9.67729191]
[1744685131288,6.16144,1623.0,1622.6,15.84010191]
[1744685131489,6.16144,1623.0,1622.6,15.77847866]
[1744685131663,12.3231,1623.0,1622.6,9.61566866]
[1744685131869,12.32311,1623.0,1622.6,9.6772919]
[1744685132194,12.32311,1623.0,1622.6,9.61566866]
[1744685132195,6.16184,1622.9,1622.6,9.61566866]
[1744685133858,12.32388,1622.9,1622.6,0.45292866]
[1744685134054,6.16269,1622.7,1622.3,6.70055]
[1744685134259,6.93292,1622.5,1622.4,4.0]
[1744685134579,6.93292,1622.5,1622.1,19.00912983]
[1744685134958,6.93292,1622.5,1622.2,6.16441]
[1744685135957,0.775,1622.8,1622.4,0.5366]
[1744685136158,8.72594623,1623.2,1622.4,0.59823041]
[1744685136159,6.93644,1623.0,1622.4,0.59823041]
[1744685136392,6.93644,1623.0,1622.6,12.32541]
[1744685136590,6.93644,1623.0,1622.6,6.16262]
[1744685137595,6.93644,1623.0,1622.6,12.38699327]
[1744685137794,6.93644,1623.0,1622.6,12.32537]
[1744685138091,0.775,1623.0,1622.7,6.22405327]
[1744685138273,0.775,1623.0,1622.7,12.92304327]
[1744685138471,5.687,1623.2,1622.9,6.16152]
[1744685138892,6.94501,1623.3,1622.9,6.16152]
[1744685139098,13.10554,1623.3,1622.9,6.16152]
[1744685139392,6.94501,1623.3,1622.9,6.16152]
[1744685139763,0.05,1623.4,1623.1,6.16082]
[1744685140163,6.21009,1623.4,1623.0,6.69798]
[1744685140397,6.16049,1623.3,1623.0,3.0]
[1744685140696,6.96279,1623.2,1622.8,12.86082]
[1744685140895,0.8021,1623.2,1622.9,6.16163]
[1744685142583,7.01206,1623.4,1623.0,6.16142]
[1744685143482,13.17223,1623.4,1623.0,6.16142]
[1744685143678,6.16031,1623.3,1622.9,6.16163]
[1744685143908,6.16031,1623.3,1623.0,6.16139]
[1744685146311,0.8521,1623.4,1623.1,6.16087]
[1744685146608,0.05,1623.4,1623.1,12.85831]
[1744685147713,0.05,1623.4,1623.1,6.69744]
[1744685148990,0.05,1623.4,1623.2,6.16054]
[1744685151014,0.05,1623.4,1623.1,13.30968584]
[1744685153211,0.05,1623.4,1623.1,12.77305584]
[1744685153882,0.05,1623.4,1623.0,6.16141]
[1744685154214,6.96035,1623.3,1623.0,6.1613]
[1744685154782,13.12088,1623.3,1622.9,6.16166]
[1744685155187,6.96033,1623.3,1623.0,6.1613]
[1744685155504,0.7998,1623.3,1623.0,6.22291417]
[1744685155704,0.7998,1623.3,1623.0,6.6979]
[1744685155923,0.05,1623.4,1623.1,6.16092]
[1744685156336,0.05,1623.4,1623.0,3.5366]
[1744685156641,0.05,1623.4,1623.3,12.26202623]
[1744685156814,0.05,1623.4,1623.3,18.55461387]
[1744685157008,0.05,1623.4,1623.3,18.49302623]
[1744685157735,0.05,1623.4,1623.3,22.49302623]
[1744685158319,0.793,1624.1,1623.8,12.31628]
[1744685158935,6.15803,1623.9,1623.5,3.5366]
[1744685159112,6.15803,1623.9,1623.5,3.0]
[1744685159113,6.95804,1623.8,1623.5,3.0]
[1744685159513,6.95804,1623.8,1623.4,6.15972]
[1744685159720,6.1588,1623.7,1623.4,6.15972]
[1744685159909,6.95804,1623.8,1623.4,12.31948]
[1744685160438,0.7996,1623.8,1623.5,6.15949]
[1744685160607,0.7996,1623.8,1623.3,16.37783]
[1744685160803,6.1589,1623.7,1623.3,15.84123]
[1744685161006,6.1589,1623.7,1623.3,16.32036]
[1744685161233,6.95802,1623.8,1623.4,6.15959]
[1744685161420,6.95802,1623.8,1623.2,3.0]
[1744685161421,6.15929,1623.6,1623.2,3.0]
[1744685161622,6.16035,1623.3,1622.9,6.69836]
[1744685161826,6.16035,1623.3,1623.0,3.0]
[1744685166510,6.16035,1623.3,1623.0,9.1614]
[1744685166907,6.16035,1623.3,1623.0,6.1614]
[1744685167113,6.97484,1623.4,1623.0,0.5366]
[1744685167114,0.8149,1623.4,1623.0,0.5366]
[1744685167314,0.8149,1623.4,1623.1,12.32193]
[1744685168148,0.8149,1623.4,1623.1,12.32174]
[1744685168326,0.8149,1623.4,1623.1,6.16085]
[1744685170737,6.97483,1623.4,1623.0,6.69801]
[1744685170939,6.1603,1623.3,1622.9,12.77490513]
[1744685171261,6.97483,1623.4,1623.0,6.16125]
[1744685171550,6.97483,1623.4,1623.0,12.32255]
[1744685172248,6.16085,1623.2,1622.9,0.45149513]
[1744685172546,0.8329,1623.1,1622.8,15.86071]
[1744685172948,0.8329,1623.1,1622.7,0.45803359]
[1744685173151,6.16166,1623.0,1622.6,12.86223]
[1744685173337,6.99399,1623.1,1622.7,13.1625]
[1744685173647,13.15531,1623.1,1622.7,13.16238]
[1744685174016,13.15531,1623.1,1622.7,9.16238]
[1744685174352,6.99399,1623.1,1622.7,15.32476]
[1744685174988,13.15529,1623.1,1622.7,9.16238]
[1744685175658,6.99399,1623.1,1622.8,6.16216]
[1744685175948,6.16185,1622.9,1622.6,6.63195028]
[1744685176648,0.7548,1622.8,1622.4,6.70009]
[1744685176946,0.7548,1622.8,1622.6,6.16262]
[1744685177114,0.7548,1623.0,1622.7,6.16248]
[1744685177319,1.5779336,1623.0,1622.7,6.16248]
[1744685177532,1.5779336,1623.0,1622.6,6.16294]
[1744685177533,7.7395036,1623.0,1622.6,6.16294]
[1744685177733,13.9011536,1623.0,1622.6,6.16294]
[1744685178249,0.7548,1623.0,1622.6,0.0616245]
[1744685178453,0.7548,1623.0,1622.5,0.98934232]
[1744685178655,13.07827,1623.0,1622.6,6.1629]
[1744685178857,6.16186,1622.9,1622.5,7.15265232]
[1744685179060,12.32392,1622.9,1622.5,7.15265232]
[1744685179938,12.32399,1622.9,1622.5,7.15265232]
[1744685180135,6.16186,1622.9,1622.5,13.31576232]
[1744685180439,6.91625,1623.0,1622.7,6.16256]
[1744685181830,6.91625,1623.0,1622.6,12.32573]
[1744685182030,6.16199,1622.9,1622.5,7.15261232]
[1744685182231,6.16221,1622.8,1622.5,7.15261232]
[1744685182475,12.32416,1622.9,1622.5,7.15261232]
[1744685182663,6.16199,1622.9,1622.5,13.31579232]
[1744685183333,6.16199,1622.9,1622.5,7.15252232]
[1744685183334,12.32404,1622.9,1622.5,7.15252232]
[1744685183762,6.16223,1622.8,1622.5,0.98934232]
[1744685183970,6.91752,1622.7,1622.4,3.0]
[1744685184164,0.7548,1622.7,1622.4,9.2253095]
[1744685184367,0.7548,1622.7,1622.5,6.16329]
[1744685184566,0.7548,1622.7,1622.4,9.16368]
[1744685184770,0.7548,1622.7,1622.4,15.3888295]
[1744685184940,0.7548,1622.7,1622.4,15.79086172]
[1744685185142,0.7548,1622.7,1622.4,9.62718172]
[1744685185336,6.91737,1622.7,1622.4,3.46366172]
[1744685186275,13.08016,1622.7,1622.4,0.46366172]
[1744685186462,6.16302,1622.6,1622.3,6.16396]
[1744685186765,6.16302,1622.6,1622.2,6.16444]
[1744685186766,12.32618,1622.6,1622.2,6.16444]
[1744685187176,6.16365,1622.5,1622.1,6.7014]
[1744685187498,12.32729,1622.5,1622.1,6.7014]
[1744685187660,12.32729,1622.5,1622.1,6.1648]
[1744685188375,0.7727,1622.6,1622.1,6.16464]
[1744685188376,13.09874,1622.6,1622.1,6.16464]
[1744685188539,6.93567,1622.6,1622.2,6.16421]
[1744685188739,2.2133306,1622.6,1622.1,9.16475]
[1744685188941,0.7727,1622.6,1622.1,9.16475]
[1744685189140,0.7727,1622.6,1622.1,3.0]
[1744685189141,6.16372,1622.4,1622.1,3.0]
[1744685189573,6.16368,1622.5,1622.1,9.1646]
[1744685190354,0.7727,1622.6,1622.0,14.94393623]
[1744685190554,6.16387,1622.4,1622.0,18.54367]
[1744685190954,12.32782,1622.4,1622.0,12.37862]
[1744685191273,0.8082,1622.3,1622.0,6.70162]
[1744685191476,0.8082,1622.3,1622.0,12.86662]
[1744685192092,0.8082,1622.3,1622.0,13.33229147]
[1744685192276,0.8082,1622.3,1622.0,7.16727147]
[1744685196896,0.821,1622.4,1622.1,6.16467]
[1744685198192,0.821,1622.4,1622.1,12.32936]
[1744685198379,6.16277,1622.7,1622.3,6.70042]
[1744685198567,6.16277,1622.7,1622.4,6.16364]
[1744685198762,5.679,1623.2,1622.4,2.62676911]
[1744685198964,0.7899,1623.0,1622.7,6.16252]
[1744685199165,0.7899,1623.0,1622.7,6.22413912]
[1744685200188,0.7899,1623.0,1622.7,6.16252]
[1744685200383,0.7899,1623.0,1622.7,6.22413979]
[1744685201099,6.95133,1623.0,1622.7,6.22413979]
[1744685201395,6.95133,1623.0,1622.7,6.16252]
[1744685202876,0.7899,1623.0,1622.7,6.16252]
[1744685203500,0.7601,1623.2,1622.9,12.32343]
[1744685203695,6.92034,1623.4,1623.0,6.16129]
[1744685203998,9.05210462,1623.4,1623.0,6.22281827]
[1744685204297,12.3208,1623.3,1622.9,6.16177]
[1744685204702,6.16029,1623.3,1622.9,6.16162]
[1744685204899,6.92005,1623.4,1623.0,6.16141]
[1744685205095,11.83257,1623.5,1623.1,6.16089]
[1744685205299,2.56513623,1623.8,1623.1,6.16089]
[1744685205300,0.7511,1623.8,1623.5,6.15928]
[1744685205475,0.7511,1623.8,1623.5,6.69588]
[1744685205685,6.90893,1624.0,1623.6,6.15902]
[1744685205885,6.15802,1623.9,1623.5,6.69588]
[1744685206271,6.90893,1624.0,1623.5,0.59818779]
[1744685206470,6.90893,1624.0,1623.6,6.15899]
[1744685207322,13.06681,1624.0,1623.6,6.15899]
[1744685207517,6.15804,1623.9,1623.6,6.15899]
[1744685207817,1.306697,1623.9,1623.5,0.5366]
[1744685208016,6.15899,1623.7,1623.3,12.36987]
[1744685208319,6.15947,1623.6,1623.3,0.5366]
[1744685208471,0.8002,1624.0,1623.4,6.15972]
[1744685208671,0.8002,1623.6,1623.3,3.0]
[1744685208893,6.95954,1623.6,1623.3,3.0]
[1744685209420,0.8002,1623.6,1623.3,9.16023]
[1744685209569,0.8002,1623.6,1623.3,9.22182612]
[1744685209775,0.8002,1623.6,1623.3,15.38191612]
[1744685209978,6.15866,1623.8,1623.4,12.31953]
[1744685210216,6.1584,1623.8,1623.3,9.16026]
[1744685210516,6.15892,1623.7,1623.3,15.78039013]
[1744685210714,6.1584,1623.8,1623.4,6.15963]
[1744685211273,6.15899,1623.7,1623.3,6.62033013]
[1744685212172,12.31802,1623.7,1623.3,6.62033013]
[1744685212406,6.96422,1623.6,1623.3,0.46005013]
[1744685212701,6.1598,1623.5,1623.1,12.85843]
[1744685213015,0.805,1623.6,1623.3,6.1601]
[1744685214405,6.15901,1623.7,1623.3,6.1601]
[1744685214706,6.15901,1623.7,1623.4,6.15989]
[1744685214917,6.9753,1623.8,1623.5,6.15953]
[1744685215124,6.97469,1624.0,1623.6,6.15883]
[1744685215685,13.13256,1624.0,1623.6,6.15883]
[1744685215905,6.15818,1623.9,1623.5,6.15947]
[1744685216206,6.15818,1623.9,1623.5,6.15922]
[1744685216412,6.15766,1624.0,1623.7,6.69536]
[1744685216629,6.97465,1624.2,1623.8,6.21974287]
[1744685217405,6.15743,1624.1,1623.8,0.46890875]
[1744685217711,6.15842,1623.8,1623.5,6.69607]
[1744685218010,6.98605,1623.9,1623.6,4.0]
[1744685218808,6.15852,1623.8,1623.5,3.5366]
[1744685219178,8.300419,1623.9,1623.5,9.69587]
[1744685219379,14.458669,1623.9,1623.5,9.69587]
[1744685219677,6.1584,1623.8,1623.5,3.5366]
[1744685219912,6.1584,1623.8,1623.5,3.0]
[1744685220433,6.15877,1623.7,1623.4,6.15988]
[1744685220585,6.15877,1623.7,1623.4,3.0]
[1744685221408,6.1584,1623.8,1623.4,6.15964]
[1744685221711,8.300379,1623.9,1623.5,6.15934]
[1744685222214,0.828,1623.9,1623.6,6.6955]
[1744685222513,5.671,1624.0,1623.8,6.15818]
[1744685223109,12.31402,1624.2,1623.8,6.15818]
[1744685223290,6.15727,1624.1,1623.8,6.15818]
[1744685223899,6.15727,1624.1,1623.8,6.62626038]
[1744685224697,6.15692,1624.2,1623.8,6.62626038]
[1744685224878,0.7811,1624.3,1623.9,6.21924423]
[1744685225083,6.93762,1624.3,1624.0,6.15763]
[1744685225288,13.09434,1624.3,1623.9,6.69427]
[1744685226620,6.93762,1624.3,1623.9,6.75584235]
[1744685227319,6.15688,1624.2,1623.9,6.69427]
[1744685228219,12.31403,1624.2,1623.9,0.5366]
[1744685228425,12.31403,1624.2,1623.8,6.62643038]
[1744685228719,6.15725,1624.1,1623.8,0.46808038]
[1744685228922,6.15725,1624.1,1623.7,12.85393]
[1744685229119,6.15725,1624.1,1623.7,6.69519]
[1744685229333,6.93056,1624.0,1623.7,0.5366]
[1744685229495,6.1584,1623.8,1623.5,6.2066]
[1744685229694,6.1584,1623.8,1623.5,6.69611]
[1744685229902,13.08833,1624.0,1623.6,6.15892]
[1744685230101,8.36106511,1624.0,1623.6,6.15892]
[1744685230303,14.51897511,1624.0,1623.6,6.15892]
[1744685230503,6.15801,1623.9,1623.6,6.15892]
[1744685230923,12.31625,1623.9,1623.5,6.69606]
[1744685231121,12.31625,1623.9,1623.5,6.75764679]
[1744685231495,6.15801,1623.9,1623.5,12.91699679]
[1744685231695,6.15801,1623.9,1623.5,12.85541]
[1744685232097,0.7845,1624.2,1623.8,6.15826]
[1744685232311,0.7845,1624.2,1623.9,6.15784]
[1744685232516,6.94145,1624.2,1623.9,6.15784]
[1744685233541,6.94155,1624.2,1623.8,12.85304]
[1744685233737,6.94155,1624.2,1623.8,6.69478]
[1744685234038,6.94155,1624.2,1623.8,12.85297]
[1744685234634,6.94155,1624.2,1623.8,6.69478]
[1744685234838,6.94155,1624.2,1623.8,12.85297]
[1744685235615,13.09866,1624.2,1623.8,6.69478]
[1744685236345,6.15778,1624.0,1623.7,3.0]
[1744685236644,13.08567,1623.9,1623.5,6.15937]
[1744685236952,6.15842,1623.8,1623.6,4.0]
[1744685237140,12.3171,1623.8,1623.6,4.0]
[1744685237316,6.15877,1623.7,1623.6,4.0]
[1744685237512,6.94067,1623.7,1623.6,4.0]
[1744685237729,8.250579,1623.7,1623.6,4.0]
[1744685238437,6.94185,1623.4,1623.1,6.16089]
[1744685238622,6.1596,1623.5,1623.2,4.0]
[1744685239260,6.1596,1623.5,1623.1,12.32174]
[1744685239947,6.1596,1623.5,1623.1,6.16085]
[1744685240524,12.3194,1623.5,1623.1,6.16085]
[1744685240720,6.1596,1623.5,1623.1,6.16085]
[1744685241038,12.3194,1623.5,1623.1,6.16085]
[1744685241449,12.3194,1623.5,1623.1,6.62913254]
[1744685241822,6.15995,1623.4,1623.1,3.46828254]
[1744685242528,6.15995,1623.4,1623.1,9.62927254]
[1744685242953,6.161,1623.2,1622.8,0.5366]
[1744685243153,6.16124,1623.1,1622.9,4.0]
[1744685243332,6.16142,1623.0,1622.9,4.0]
[1744685243536,6.16124,1623.1,1622.9,4.0]
[1744685244058,12.3226,1623.1,1622.8,4.4579659]
[1744685244227,6.16124,1623.1,1622.8,4.0]
[1744685244958,6.94711,1623.0,1622.8,4.0]
[1744685245161,0.7855,1623.0,1622.8,10.16202]
[1744685245339,0.7855,1623.0,1622.8,4.0]
[1744685245656,6.94713,1623.0,1622.6,9.69936]
[1744685245857,0.7855,1623.0,1622.7,6.16231]
[1744685246154,0.7855,1623.0,1622.7,6.22392676]
[1744685246559,0.7855,1623.0,1622.7,12.38647676]
[1744685246762,0.7855,1623.0,1622.7,6.16231]
[1744685246968,6.95673,1623.3,1622.8,6.16201]
[1744685247163,0.7964,1623.3,1623.0,6.16142]
[1744685247326,0.7964,1623.5,1623.2,0.5366]
[1744685247531,13.11441,1623.7,1623.3,6.16029]
[1744685247766,0.7964,1623.7,1623.4,6.15978]
[1744685248126,0.7964,1623.7,1623.3,3.0]
[1744685248326,6.15973,1623.5,1623.1,6.16089]
[1744685248742,0.7964,1623.4,1623.1,6.16089]
[1744685249654,0.7964,1623.6,1623.1,0.55]
[1744685249967,0.7964,1623.6,1623.0,1.0866]
[1744685249968,0.7964,1623.6,1623.3,6.16008]
[1744685250200,6.95558,1623.6,1623.2,6.16067]
[1744685250880,6.15849,1623.8,1623.3,6.15994]
[1744685251086,6.94275,1623.7,1623.4,6.15988]
[1744685252086,0.7838,1623.7,1623.4,6.15988]
[1744685252883,6.15849,1623.8,1623.4,6.61779478]
[1744685253081,13.07342,1623.9,1623.5,6.15943]
[1744685253683,6.15846,1623.8,1623.4,6.61790478]
[1744685253873,12.31716,1623.8,1623.4,6.61790478]
[1744685254686,6.15883,1623.7,1623.4,6.61790478]
[1744685259699,6.15958,1623.5,1623.2,14.82765]
[1744685259853,0.7941,1623.5,1623.2,11.82752]
[1744685260188,6.9529,1623.7,1623.2,5.667]
[1744685260684,6.9529,1623.7,1623.2,11.82755]
[1744685260885,6.1593,1623.6,1623.2,17.98801]
[1744685261093,6.1593,1623.6,1623.2,17.98795]
[1744685262085,6.1593,1623.6,1623.2,11.82746]
[1744685262292,6.9538,1623.5,1623.2,5.667]
[1744685262461,13.1137,1623.5,1623.2,5.667]
[1744685262669,14.42507,1623.5,1623.1,6.16103]
[1744685263023,13.1137,1623.5,1623.1,6.62973381]
[1744685263481,6.9538,1623.5,1623.1,12.79063381]
[1744685263979,13.11355,1623.5,1623.1,6.62960381]
[1744685264198,6.9538,1623.5,1623.1,12.79047381]
[1744685264420,0.7538,1623.7,1623.2,0.06160163]
[1744685264624,0.7538,1623.7,1623.4,6.15977]
[1744685267696,0.7538,1623.7,1623.4,12.31952]
[1744685267897,0.7538,1623.7,1623.4,6.15975]
[1744685268118,6.9127,1623.7,1623.4,6.15975]
[1744685270284,0.7538,1623.7,1623.2,9.69725]
[1744685270511,6.15932,1623.6,1623.2,9.69725]
[1744685270701,0.7619,1623.5,1623.2,9.16065]
[1744685271829,6.16031,1623.3,1623.1,0.46918878]
[1744685272122,6.16031,1623.3,1622.8,12.86057]
[1744685272123,6.96847,1623.2,1622.8,12.86057]
[1744685272284,6.96847,1623.2,1622.9,10.16176]
[1744685272786,6.16107,1623.1,1622.9,4.0]
[1744685273577,12.32236,1623.1,1622.9,4.0]
[1744685273813,6.96902,1623.0,1622.9,4.0]
[1744685274017,6.96902,1623.0,1622.6,6.1628]
[1744685275615,6.16193,1622.9,1622.6,0.45889807]
[1744685275814,6.16193,1622.9,1622.5,6.16319]
[1744685276119,12.32399,1622.9,1622.5,6.16319]
[1744685276414,6.91261,1622.8,1622.5,6.16319]
[1744685276797,0.7504,1623.0,1622.8,6.16196]
[1744685276997,0.7504,1623.2,1622.9,6.22310905]
[1744685277226,0.7504,1623.2,1622.9,6.16149]
[1744685277590,0.7504,1623.2,1622.9,12.32308]
[1744685277791,0.7504,1623.2,1622.9,12.79523328]
[1744685278824,0.7504,1623.2,1622.9,6.63364328]
[1744685279324,6.91109,1623.2,1622.9,6.63364328]
[1744685280124,0.7504,1623.2,1622.9,6.63364328]
[1744685280829,0.7504,1623.2,1622.9,12.32316]
[1744685281128,0.7504,1623.2,1623.0,6.16122]
[1744685281890,5.663,1623.3,1623.0,6.16122]
[1744685282091,6.4769,1623.3,1623.0,6.16122]
[1744685282519,6.4769,1623.3,1623.0,12.32244]
[1744685284521,6.15973,1623.5,1623.1,6.16084]
[1744685284691,13.13897,1623.5,1623.1,6.16084]
[1744685285308,6.15991,1623.4,1623.1,6.16084]
[1744685287927,0.8195,1623.5,1623.1,6.16084]
[1744685288130,0.7844,1623.6,1623.4,6.15991]
[1744685288330,0.7844,1623.8,1623.6,6.15888]
[1744685288828,6.15879,1623.7,1623.4,0.46438712]
[1744685289132,0.8209,1623.5,1623.2,17.98409]
[1744685289733,0.8209,1623.5,1623.1,15.85845]
[1744685289900,6.98059,1623.5,1623.1,15.85845]
[1744685290429,6.98059,1623.5,1623.1,9.69744]
[1744685291121,6.98059,1623.5,1623.1,15.85832]
[1744685291631,6.98059,1623.5,1623.2,6.16056]
[1744685291837,12.6503,1623.7,1623.3,6.16003]
[1744685292132,6.4915,1623.7,1623.4,6.15972]
[1744685292303,0.8285,1623.7,1623.4,6.69632]
[1744685292503,6.15801,1623.9,1623.5,6.22099071]
[1744685292698,6.98651,1623.9,1623.5,6.1594]